[Event "*** Titled Tuesday Blitz"]
[Site "Chess.com"]
[Date "2020.12.01"]
[Round "4"]
[White "AliKa2810"]
[Black "ChronicUnhappiness"]
[Result "0-1"]
[WhiteElo "2576"]
[BlackElo "2364"]
[TimeControl "180+1"]
[EndTime "10:39:22 PST"]
[Termination "ChronicUnhappiness won on time"]

1. d4 {[%clk 0:03:00.7]} 1... d5 {[%clk 0:02:58.9]} 2. c4 {[%clk 0:03:00.4]}
2... e6 {[%clk 0:02:58.6]} 3. Nc3 {[%clk 0:02:59.2]} 3... Bb4 {[%clk 0:02:57.9]}
4. a3 {[%clk 0:02:55.4]} 4... Bxc3+ {[%clk 0:02:56.9]} 5. bxc3 {[%clk
0:02:56.3]} 5... c5 {[%clk 0:02:57.2]} 6. e3 {[%clk 0:02:56.4]} 6... Qa5 {[%clk
0:02:56.2]} 7. Nf3 {[%clk 0:02:46]} 7... cxd4 {[%clk 0:02:48]} 8. exd4 {[%clk
0:02:44.3]} 8... Nf6 {[%clk 0:02:46.7]} 9. Qb3 {[%clk 0:02:37.2]} 9... O-O
{[%clk 0:02:43.8]} 10. Bd3 {[%clk 0:02:26.7]} 10... b6 {[%clk 0:02:31.9]} 11.
O-O {[%clk 0:02:21]} 11... Ba6 {[%clk 0:02:30]} 12. Ne5 {[%clk 0:02:18.6]} 12...
dxc4 {[%clk 0:02:20.6]} 13. Bxc4 {[%clk 0:02:13.2]} 13... Bxc4 {[%clk
0:02:18.1]} 14. Qxc4 {[%clk 0:02:11.3]} 14... Qd5 {[%clk 0:02:15.2]} 15. Qe2
{[%clk 0:02:01.8]} 15... Nc6 {[%clk 0:02:11.6]} 16. Bg5 {[%clk 0:02:01.7]} 16...
Nxe5 {[%clk 0:02:02.4]} 17. dxe5 {[%clk 0:01:59.7]} 17... Ne4 {[%clk 0:01:53.1]}
18. Bf4 {[%clk 0:01:57.6]} 18... Nxc3 {[%clk 0:01:46]} 19. Qe3 {[%clk
0:01:56.6]} 19... Rfc8 {[%clk 0:01:38.1]} 20. h4 {[%clk 0:01:49.5]} 20... Qe4
{[%clk 0:01:34]} 21. Qxe4 {[%clk 0:01:38.4]} 21... Nxe4 {[%clk 0:01:33.3]} 22.
Rfe1 {[%clk 0:01:37.2]} 22... Rc4 {[%clk 0:01:25.7]} 23. Be3 {[%clk 0:01:18.4]}
23... h5 {[%clk 0:01:22.8]} 24. Rad1 {[%clk 0:01:12]} 24... Nc5 {[%clk
0:01:20.8]} 25. Bxc5 {[%clk 0:01:03.3]} 25... Rxc5 {[%clk 0:01:20.4]} 26. Rd7
{[%clk 0:01:03]} 26... a5 {[%clk 0:01:18]} 27. Re3 {[%clk 0:01:01.2]} 27... b5
{[%clk 0:01:14.6]} 28. Rf3 {[%clk 0:01:00.9]} 28... Rf8 {[%clk 0:01:13.5]} 29.
Re3 {[%clk 0:00:55.2]} 29... Rc4 {[%clk 0:01:07.3]} 30. g3 {[%clk 0:00:54.5]}
30... b4 {[%clk 0:00:56.1]} 31. axb4 {[%clk 0:00:53.6]} 31... axb4 {[%clk
0:00:57]} 32. Rb7 {[%clk 0:00:53.1]} 32... Rfc8 {[%clk 0:00:53.8]} 33. Rb3
{[%clk 0:00:40]} 33... R4c5 {[%clk 0:00:50.7]} 34. R3xb4 {[%clk 0:00:38.2]}
34... Rxe5 {[%clk 0:00:48.9]} 35. Rf4 {[%clk 0:00:37.8]} 35... Rf8 {[%clk
0:00:43.7]} 36. Kg2 {[%clk 0:00:36.7]} 36... g6 {[%clk 0:00:44]} 37. Rf3 {[%clk
0:00:35.7]} 37... Kg7 {[%clk 0:00:44.2]} 38. Rf4 {[%clk 0:00:36.1]} 38... Rf5
{[%clk 0:00:43.6]} 39. Rxf5 {[%clk 0:00:35.5]} 39... gxf5 {[%clk 0:00:44.5]} 40.
Kf3 {[%clk 0:00:33.8]} 40... Kf6 {[%clk 0:00:44.8]} 41. Ra7 {[%clk 0:00:31.7]}
41... Rb8 {[%clk 0:00:44.5]} 42. Rc7 {[%clk 0:00:31.5]} 42... Rb3+ {[%clk
0:00:43.6]} 43. Kg2 {[%clk 0:00:31.4]} 43... Rb6 {[%clk 0:00:42.2]} 44. Ra7
{[%clk 0:00:31.3]} 44... e5 {[%clk 0:00:42.1]} 45. Rc7 {[%clk 0:00:31.1]} 45...
e4 {[%clk 0:00:35.9]} 46. Ra7 {[%clk 0:00:30.9]} 46... Rb2 {[%clk 0:00:33.9]}
47. Kg1 {[%clk 0:00:29.2]} 47... Kg6 {[%clk 0:00:25.6]} 48. Ra6+ {[%clk
0:00:27.7]} 48... f6 {[%clk 0:00:25.9]} 49. Ra7 {[%clk 0:00:20.3]} 49... f4
{[%clk 0:00:25.6]} 50. gxf4 {[%clk 0:00:19.5]} 50... Kf5 {[%clk 0:00:25.9]} 51.
Re7 {[%clk 0:00:17.9]} 51... Kxf4 {[%clk 0:00:25.4]} 52. Re6 {[%clk 0:00:09.2]}
52... f5 {[%clk 0:00:25.4]} 53. Rf6 {[%clk 0:00:09]} 53... Kg4 {[%clk
0:00:24.7]} 54. Rf8 {[%clk 0:00:09.1]} 54... f4 {[%clk 0:00:23.7]} 55. Re8
{[%clk 0:00:07.9]} 55... Kf3 {[%clk 0:00:22.8]} 56. Rf8 {[%clk 0:00:01.1]} 56...
Rb1+ {[%clk 0:00:17.8]} 57. Kh2 {[%clk 0:00:01.2]} 57... Rf1 {[%clk 0:00:17.8]}
0-1

[Event "*** Titled Tuesday Blitz"]
[Site "Chess.com"]
[Date "2020.12.01"]
[Round "4"]
[White "RobertoJBM"]
[Black "pavelalexandru07"]
[Result "0-1"]
[WhiteElo "2679"]
[BlackElo "2355"]
[TimeControl "180+1"]
[EndTime "10:39:22 PST"]
[Termination "pavelalexandru07 won on time"]

1. d4 {[%clk 0:03:00.9]} 1... d5 {[%clk 0:01:40.7]} 2. e3 {[%clk 0:02:57.3]}
2... Nf6 {[%clk 0:01:40.2]} 3. Nf3 {[%clk 0:02:58.2]} 3... e6 {[%clk 0:01:40.3]}
4. Bd3 {[%clk 0:02:58.4]} 4... Bd6 {[%clk 0:01:40.5]} 5. O-O {[%clk 0:02:59.3]}
5... O-O {[%clk 0:01:40.7]} 6. Nbd2 {[%clk 0:03:00]} 6... c6 {[%clk 0:01:40.1]}
7. e4 {[%clk 0:03:00.2]} 7... dxe4 {[%clk 0:01:40.4]} 8. Nxe4 {[%clk 0:03:01.1]}
8... Nxe4 {[%clk 0:01:39.6]} 9. Bxe4 {[%clk 0:03:02]} 9... Nd7 {[%clk
0:01:38.6]} 10. c3 {[%clk 0:03:02.6]} 10... Nf6 {[%clk 0:01:38.6]} 11. Bc2
{[%clk 0:03:03.5]} 11... h6 {[%clk 0:01:38.5]} 12. Re1 {[%clk 0:03:03.1]} 12...
c5 {[%clk 0:01:38.7]} 13. Be3 {[%clk 0:03:02.3]} 13... b6 {[%clk 0:01:37.2]} 14.
dxc5 {[%clk 0:02:55.3]} 14... Bxc5 {[%clk 0:01:36.8]} 15. Bxc5 {[%clk
0:02:54.7]} 15... bxc5 {[%clk 0:01:36.4]} 16. Qxd8 {[%clk 0:02:54.8]} 16... Rxd8
{[%clk 0:01:36.2]} 17. Rad1 {[%clk 0:02:54.9]} 17... Bb7 {[%clk 0:01:36.6]} 18.
Ne5 {[%clk 0:02:54.5]} 18... Kf8 {[%clk 0:01:33.5]} 19. f3 {[%clk 0:02:53.8]}
19... Ke7 {[%clk 0:01:33.8]} 20. Kf2 {[%clk 0:02:46.9]} 20... Bd5 {[%clk
0:01:33.7]} 21. c4 {[%clk 0:02:46.7]} 21... Bb7 {[%clk 0:01:33.4]} 22. Ba4
{[%clk 0:02:43.5]} 22... Rac8 {[%clk 0:01:27.9]} 23. b3 {[%clk 0:02:40.6]} 23...
Ne8 {[%clk 0:01:24.1]} 24. Bxe8 {[%clk 0:02:38.7]} 24... Kxe8 {[%clk 0:01:23.4]}
25. Ke3 {[%clk 0:02:32.5]} 25... f6 {[%clk 0:01:22.6]} 26. Nd3 {[%clk
0:02:31.6]} 26... Ke7 {[%clk 0:01:22.2]} 27. Rd2 {[%clk 0:02:30.9]} 27... e5
{[%clk 0:01:20.8]} 28. Red1 {[%clk 0:02:30.8]} 28... g6 {[%clk 0:01:11.2]} 29.
h4 {[%clk 0:02:29.3]} 29... Rd4 {[%clk 0:01:10.4]} 30. g3 {[%clk 0:02:21]} 30...
Ke6 {[%clk 0:01:00.8]} 31. f4 {[%clk 0:02:02.9]} 31... Kd6 {[%clk 0:00:39.2]}
32. fxe5+ {[%clk 0:01:51.5]} 32... fxe5 {[%clk 0:00:40.1]} 33. Rf1 {[%clk
0:01:51.5]} 33... Re4+ {[%clk 0:00:38.5]} 34. Kf2 {[%clk 0:01:49.5]} 34... Rf8+
{[%clk 0:00:38.3]} 35. Kg1 {[%clk 0:01:50]} 35... Rxf1+ {[%clk 0:00:37.6]} 36.
Kxf1 {[%clk 0:01:50.9]} 36... Rd4 {[%clk 0:00:37.3]} 37. Ke1 {[%clk 0:01:48.7]}
37... e4 {[%clk 0:00:33.2]} 38. Nf4 {[%clk 0:01:48.2]} 38... g5 {[%clk
0:00:33.4]} 39. hxg5 {[%clk 0:01:46.4]} 39... hxg5 {[%clk 0:00:33.2]} 40. Ng2
{[%clk 0:01:46.9]} 40... Ke5 {[%clk 0:00:30.7]} 41. Ne3 {[%clk 0:01:43.8]} 41...
Bc8 {[%clk 0:00:23.4]} 42. Rh2 {[%clk 0:01:32.9]} 42... Rd3 {[%clk 0:00:22.7]}
43. Ke2 {[%clk 0:01:33.4]} 43... Kd4 {[%clk 0:00:22.8]} 44. Nc2+ {[%clk
0:00:56.7]} 44... Kc3 {[%clk 0:00:22.9]} 45. Kf1 {[%clk 0:00:52.7]} 45... Rd1+
{[%clk 0:00:18.6]} 46. Ne1 {[%clk 0:00:52.6]} 46... e3 {[%clk 0:00:12.4]} 47.
Re2 {[%clk 0:00:36.2]} 47... Kd4 {[%clk 0:00:11.6]} 48. Kg2 {[%clk 0:00:32.4]}
48... Rd2 {[%clk 0:00:11.8]} 49. Nf3+ {[%clk 0:00:31.9]} 49... Kd3 {[%clk
0:00:11.6]} 50. Nxd2 {[%clk 0:00:32]} 50... exd2 {[%clk 0:00:11.9]} 51. Re8
{[%clk 0:00:31.5]} 51... d1=Q {[%clk 0:00:11.7]} 52. Rxc8 {[%clk 0:00:32.1]}
52... Qe2+ {[%clk 0:00:11.2]} 53. Kh3 {[%clk 0:00:31.7]} 53... Qe6+ {[%clk
0:00:11.7]} 54. Kg2 {[%clk 0:00:31.7]} 54... Qxc8 {[%clk 0:00:12.3]} 0-1

[Event "*** Titled Tuesday Blitz"]
[Site "Chess.com"]
[Date "2020.12.01"]
[Round "4"]
[White "LamaChampetre"]
[Black "dopolian"]
[Result "0-1"]
[WhiteElo "2224"]
[BlackElo "2429"]
[TimeControl "180+1"]
[EndTime "10:39:23 PST"]
[Termination "dopolian won on time"]

1. d4 {[%clk 0:03:00.8]} 1... Nf6 {[%clk 0:02:55.8]} 2. c4 {[%clk 0:02:58.7]}
2... e6 {[%clk 0:02:54.9]} 3. Nf3 {[%clk 0:02:56.2]} 3... b6 {[%clk 0:02:50.3]}
4. g3 {[%clk 0:02:55.9]} 4... Bb4+ {[%clk 0:02:47.7]} 5. Nbd2 {[%clk 0:02:54.4]}
5... Bb7 {[%clk 0:02:44.9]} 6. Bg2 {[%clk 0:02:54.1]} 6... O-O {[%clk 0:02:44]}
7. O-O {[%clk 0:02:53.2]} 7... a5 {[%clk 0:02:38]} 8. Nb1 {[%clk 0:02:44.6]}
8... Ne4 {[%clk 0:02:29.2]} 9. c5 {[%clk 0:02:23.2]} 9... a4 {[%clk 0:02:08.8]}
10. Qc2 {[%clk 0:01:27.7]} 10... bxc5 {[%clk 0:01:58.9]} 11. Ng5 {[%clk
0:01:24.6]} 11... d5 {[%clk 0:01:23.6]} 12. Nxe4 {[%clk 0:01:18.9]} 12... dxe4
{[%clk 0:01:24.5]} 13. a3 {[%clk 0:01:18.7]} 13... Ba5 {[%clk 0:01:22.5]} 14.
dxc5 {[%clk 0:01:14.3]} 14... f5 {[%clk 0:01:13.9]} 15. Nc3 {[%clk 0:00:55]}
15... Bxc3 {[%clk 0:01:07.1]} 16. Qxc3 {[%clk 0:00:53.5]} 16... Bc6 {[%clk
0:01:02.3]} 17. Bf4 {[%clk 0:00:48]} 17... Nd7 {[%clk 0:00:59.4]} 18. Rfd1
{[%clk 0:00:42.7]} 18... Ra7 {[%clk 0:00:54.2]} 19. Rd2 {[%clk 0:00:37.9]} 19...
Qe7 {[%clk 0:00:54]} 20. Rc1 {[%clk 0:00:19.7]} 20... e5 {[%clk 0:00:48.3]} 21.
Rxd7 {[%clk 0:00:17.6]} 21... Qxd7 {[%clk 0:00:43.9]} 22. Bxe5 {[%clk
0:00:17.7]} 22... Raa8 {[%clk 0:00:37.8]} 23. e3 {[%clk 0:00:15.5]} 23... Rad8
{[%clk 0:00:29.2]} 24. Bd4 {[%clk 0:00:13.5]} 24... Qf7 {[%clk 0:00:28.7]} 25.
Bf1 {[%clk 0:00:12.7]} 25... Rb8 {[%clk 0:00:27.2]} 26. Bc4 {[%clk 0:00:12.1]}
26... Bd5 {[%clk 0:00:26.7]} 27. Be2 {[%clk 0:00:10]} 27... c6 {[%clk
0:00:21.8]} 28. Rc2 {[%clk 0:00:07.7]} 28... Ra8 {[%clk 0:00:14.4]} 29. Qb4
{[%clk 0:00:07.2]} 29... Rfb8 {[%clk 0:00:14.1]} 30. Qc3 {[%clk 0:00:07.3]}
30... Rb3 {[%clk 0:00:14.2]} 31. Qd2 {[%clk 0:00:07.3]} 31... Qb7 {[%clk
0:00:11.4]} 32. h4 {[%clk 0:00:06]} 32... Qf7 {[%clk 0:00:10.4]} 33. Rc1 {[%clk
0:00:06.1]} 33... Rb7 {[%clk 0:00:09.5]} 34. Qc3 {[%clk 0:00:05.5]} 34... Bb3
{[%clk 0:00:07]} 35. Qd2 {[%clk 0:00:04.6]} 35... Rd7 {[%clk 0:00:06.6]} 36. Rc3
{[%clk 0:00:04.5]} 36... Rad8 {[%clk 0:00:06.5]} 37. Qc1 {[%clk 0:00:04.2]}
37... Kh8 {[%clk 0:00:04.7]} 38. Qe1 {[%clk 0:00:02.8]} 38... h6 {[%clk
0:00:04]} 39. h5 {[%clk 0:00:01.8]} 39... Qe8 {[%clk 0:00:03.5]} 40. Qc1 {[%clk
0:00:02.7]} 40... Bf7 {[%clk 0:00:03.1]} 41. Bc4 {[%clk 0:00:03.2]} 41... Bxh5
{[%clk 0:00:03.1]} 42. Bf1 {[%clk 0:00:01.7]} 42... Bf7 {[%clk 0:00:03.1]} 43.
Rc2 {[%clk 0:00:01.4]} 43... Bd5 {[%clk 0:00:03.2]} 44. Rc3 {[%clk 0:00:02.3]}
44... Qh5 {[%clk 0:00:03.2]} 45. Qc2 {[%clk 0:00:02.7]} 45... Rf7 {[%clk
0:00:02.8]} 46. Be2 {[%clk 0:00:03]} 46... Bb3 {[%clk 0:00:02.5]} 47. Qd2 {[%clk
0:00:02.6]} 47... Qg6 {[%clk 0:00:02.2]} 48. Rxb3 {[%clk 0:00:02]} 48... axb3
{[%clk 0:00:02]} 49. Bc4 {[%clk 0:00:02.9]} 49... Rfd7 {[%clk 0:00:01.4]} 50.
Qc3 {[%clk 0:00:03]} 50... Rxd4 {[%clk 0:00:01.1]} 51. exd4 {[%clk 0:00:03.9]}
51... Qf6 {[%clk 0:00:01.7]} 52. Bxb3 {[%clk 0:00:02.9]} 52... Qxd4 {[%clk
0:00:02.6]} 53. Qc1 {[%clk 0:00:02.8]} 53... Qd2 {[%clk 0:00:03]} 54. Qc4 {[%clk
0:00:01.7]} 54... e3 {[%clk 0:00:03.3]} 0-1

[Event "*** Titled Tuesday Blitz"]
[Site "Chess.com"]
[Date "2020.12.01"]
[Round "4"]
[White "Kovalchuk94"]
[Black "MikeSailer"]
[Result "1-0"]
[WhiteElo "2562"]
[BlackElo "2160"]
[TimeControl "180+1"]
[EndTime "10:39:28 PST"]
[Termination "Kovalchuk94 won by resignation"]

1. e4 {[%clk 0:02:32.3]} 1... d5 {[%clk 0:02:58.1]} 2. exd5 {[%clk 0:02:31.8]}
2... Qxd5 {[%clk 0:02:58.1]} 3. Nc3 {[%clk 0:02:31.7]} 3... Qd6 {[%clk
0:02:58.7]} 4. d4 {[%clk 0:02:31.8]} 4... Nf6 {[%clk 0:02:58.8]} 5. Nf3 {[%clk
0:02:32]} 5... c6 {[%clk 0:02:59.3]} 6. Ne5 {[%clk 0:02:27.6]} 6... Nbd7 {[%clk
0:02:52]} 7. Nc4 {[%clk 0:02:23.6]} 7... Qc7 {[%clk 0:02:52.4]} 8. Qf3 {[%clk
0:02:22.8]} 8... Nb6 {[%clk 0:02:52.4]} 9. Bf4 {[%clk 0:02:22.6]} 9... Qd8
{[%clk 0:02:52.8]} 10. O-O-O {[%clk 0:02:17.4]} 10... Bg4 {[%clk 0:02:49.5]} 11.
Qe3 {[%clk 0:02:08.7]} 11... Bxd1 {[%clk 0:02:48.4]} 12. Nd6+ {[%clk 0:02:00.7]}
12... Qxd6 {[%clk 0:02:20.8]} 13. Bxd6 {[%clk 0:01:59.5]} 13... Nbd5 {[%clk
0:02:18.4]} 14. Nxd5 {[%clk 0:01:58.3]} 14... Nxd5 {[%clk 0:02:18.7]} 15. Qe1
{[%clk 0:01:57.9]} 15... Bg4 {[%clk 0:02:06.2]} 16. Bg3 {[%clk 0:01:56.6]} 16...
e6 {[%clk 0:02:02.6]} 17. c3 {[%clk 0:01:44.6]} 17... O-O-O {[%clk 0:02:00.8]}
18. Bd3 {[%clk 0:01:37.9]} 18... Bd6 {[%clk 0:01:52.3]} 19. f3 {[%clk
0:01:34.3]} 19... Bxg3 {[%clk 0:01:30.7]} 20. Qxg3 {[%clk 0:01:31.8]} 20... Bf5
{[%clk 0:01:23.4]} 21. Bxf5 {[%clk 0:01:30.5]} 21... exf5 {[%clk 0:01:24.1]} 22.
a3 {[%clk 0:00:57]} 22... g6 {[%clk 0:01:21.3]} 23. Re1 {[%clk 0:00:53.2]} 23...
Rd7 {[%clk 0:01:12.3]} 24. Qh4 {[%clk 0:00:50.6]} 24... f6 {[%clk 0:00:58.2]}
25. c4 {[%clk 0:00:44.7]} 25... g5 {[%clk 0:00:53.7]} 26. Qh6 {[%clk 0:00:42.7]}
26... Nf4 {[%clk 0:00:52.6]} 27. Qxf6 {[%clk 0:00:35.6]} 27... Rhd8 {[%clk
0:00:43.1]} 28. Qxf5 {[%clk 0:00:27.2]} 28... Nxg2 {[%clk 0:00:37.3]} 29. Re7
{[%clk 0:00:24.1]} 29... h6 {[%clk 0:00:30.8]} 30. Qe6 {[%clk 0:00:14.3]} 30...
Nf4 {[%clk 0:00:17.2]} 31. Qf5 {[%clk 0:00:11.7]} 31... Kc7 {[%clk 0:00:14.9]}
32. Rxd7+ {[%clk 0:00:10.1]} 32... Rxd7 {[%clk 0:00:15.5]} 33. Qe5+ {[%clk
0:00:09.4]} 33... Kc8 {[%clk 0:00:14.7]} 34. Kc2 {[%clk 0:00:09.8]} 34... b6
{[%clk 0:00:11.4]} 35. h4 {[%clk 0:00:10]} 35... Ng2 {[%clk 0:00:09.2]} 36. hxg5
{[%clk 0:00:09.3]} 36... hxg5 {[%clk 0:00:09.5]} 37. Kd3 {[%clk 0:00:04.1]}
37... Nf4+ {[%clk 0:00:08.6]} 38. Kc3 {[%clk 0:00:03.5]} 38... Ng6 {[%clk
0:00:09.1]} 39. Qxg5 {[%clk 0:00:03.4]} 39... Ne7 {[%clk 0:00:09.1]} 40. Qg4
{[%clk 0:00:03.5]} 40... Kc7 {[%clk 0:00:09.2]} 41. Qe4 {[%clk 0:00:03.9]} 41...
c5 {[%clk 0:00:09.5]} 42. Qf4+ {[%clk 0:00:04.3]} 42... Kb7 {[%clk 0:00:09.6]}
43. d5 {[%clk 0:00:04.8]} 43... Nc8 {[%clk 0:00:10.1]} 44. Qe5 {[%clk 0:00:05]}
44... Nd6 {[%clk 0:00:10.9]} 45. f4 {[%clk 0:00:05.4]} 45... Kc7 {[%clk
0:00:10.5]} 46. f5 {[%clk 0:00:05.7]} 46... Rf7 {[%clk 0:00:11.2]} 47. f6 {[%clk
0:00:06.1]} 47... Kd7 {[%clk 0:00:12]} 48. Qe6+ {[%clk 0:00:06.5]} 48... Kc7
{[%clk 0:00:12.4]} 49. b4 {[%clk 0:00:07.2]} 49... cxb4+ {[%clk 0:00:12]} 50.
axb4 {[%clk 0:00:07.4]} 50... a5 {[%clk 0:00:12.2]} 51. bxa5 {[%clk 0:00:06.9]}
51... bxa5 {[%clk 0:00:12.6]} 52. c5 {[%clk 0:00:07.5]} 52... Nb5+ {[%clk
0:00:13.2]} 53. Kc4 {[%clk 0:00:07.7]} 53... Na3+ {[%clk 0:00:13.1]} 54. Kb3
{[%clk 0:00:08.1]} 54... Nb5 {[%clk 0:00:13.3]} 55. Qxf7+ {[%clk 0:00:08]} 1-0

[Event "*** Titled Tuesday Blitz"]
[Site "Chess.com"]
[Date "2020.12.01"]
[Round "4"]
[White "Tejas_Rama"]
[Black "SergeyShtyka"]
[Result "0-1"]
[WhiteElo "2233"]
[BlackElo "2429"]
[TimeControl "180+1"]
[EndTime "10:39:28 PST"]
[Termination "SergeyShtyka won by checkmate"]

1. Nf3 {[%clk 0:02:55.8]} 1... c5 {[%clk 0:02:55.4]} 2. c4 {[%clk 0:02:55.6]}
2... Nc6 {[%clk 0:02:54]} 3. d4 {[%clk 0:02:43.8]} 3... cxd4 {[%clk 0:02:50.8]}
4. Nxd4 {[%clk 0:02:41.3]} 4... Nf6 {[%clk 0:02:50.2]} 5. Nc3 {[%clk 0:02:40.4]}
5... g6 {[%clk 0:02:47.5]} 6. e4 {[%clk 0:02:39.8]} 6... d6 {[%clk 0:02:45]} 7.
Be3 {[%clk 0:02:39.6]} 7... Bg7 {[%clk 0:02:45]} 8. Be2 {[%clk 0:02:39.4]} 8...
O-O {[%clk 0:02:45]} 9. O-O {[%clk 0:02:39.2]} 9... Nxd4 {[%clk 0:02:45.2]} 10.
Bxd4 {[%clk 0:02:39.1]} 10... Be6 {[%clk 0:02:46.1]} 11. Rc1 {[%clk 0:02:35.4]}
11... Rc8 {[%clk 0:02:43.2]} 12. b3 {[%clk 0:02:33.4]} 12... a6 {[%clk 0:02:43]}
13. f4 {[%clk 0:02:25.6]} 13... Qa5 {[%clk 0:02:26.3]} 14. f5 {[%clk 0:02:12.3]}
14... Bd7 {[%clk 0:02:17.6]} 15. g4 {[%clk 0:02:08.1]} 15... Bc6 {[%clk
0:01:54.8]} 16. Bf3 {[%clk 0:01:45.8]} 16... Ne8 {[%clk 0:01:48.7]} 17. g5
{[%clk 0:01:40.1]} 17... Bxd4+ {[%clk 0:01:43.5]} 18. Qxd4 {[%clk 0:01:41]}
18... Qc5 {[%clk 0:01:43.4]} 19. Qxc5 {[%clk 0:01:39.1]} 19... dxc5 {[%clk
0:01:43.6]} 20. e5 {[%clk 0:01:23.9]} 20... gxf5 {[%clk 0:01:10.5]} 21. Bxc6
{[%clk 0:01:19.1]} 21... bxc6 {[%clk 0:01:10.1]} 22. Rxf5 {[%clk 0:01:12.5]}
22... Ng7 {[%clk 0:01:09.9]} 23. Rf3 {[%clk 0:01:09.6]} 23... Ne6 {[%clk
0:01:10.2]} 24. Ne4 {[%clk 0:01:04.4]} 24... Rcd8 {[%clk 0:01:09.7]} 25. h4
{[%clk 0:00:53.2]} 25... Rd4 {[%clk 0:01:09]} 26. Re1 {[%clk 0:00:52.3]} 26...
Rfd8 {[%clk 0:01:08.4]} 27. Kf2 {[%clk 0:00:50.7]} 27... Kg7 {[%clk 0:01:02.1]}
28. Ng3 {[%clk 0:00:37.5]} 28... Rd2+ {[%clk 0:01:00.2]} 29. Ke3 {[%clk
0:00:31.2]} 29... R8d3+ {[%clk 0:00:50.1]} 30. Ke4 {[%clk 0:00:30.2]} 30... Rd4+
{[%clk 0:00:44.9]} 31. Ke3 {[%clk 0:00:24.9]} 31... R4d3+ {[%clk 0:00:42]} 32.
Ke4 {[%clk 0:00:25.3]} 32... Rxf3 {[%clk 0:00:41.3]} 33. Kxf3 {[%clk 0:00:26.2]}
33... Nd4+ {[%clk 0:00:37.6]} 34. Ke4 {[%clk 0:00:22.9]} 34... Rxa2 {[%clk
0:00:36]} 35. b4 {[%clk 0:00:21]} 35... Nc2 {[%clk 0:00:22.8]} 36. Nf5+ {[%clk
0:00:20.6]} 36... Kg6 {[%clk 0:00:15.4]} 37. Nxe7+ {[%clk 0:00:20.4]} 37... Kh5
{[%clk 0:00:15.8]} 38. Re2 {[%clk 0:00:20.5]} 38... Nxb4 {[%clk 0:00:12.7]} 39.
Rxa2 {[%clk 0:00:20.2]} 39... Nxa2 {[%clk 0:00:13.6]} 40. Kf5 {[%clk 0:00:19.1]}
40... Nb4 {[%clk 0:00:08.4]} 41. Kf6 {[%clk 0:00:19.5]} 41... a5 {[%clk
0:00:05.7]} 42. Kxf7 {[%clk 0:00:19.2]} 42... a4 {[%clk 0:00:06.3]} 43. e6
{[%clk 0:00:19.8]} 43... a3 {[%clk 0:00:06.1]} 44. Ng8 {[%clk 0:00:18.6]} 44...
a2 {[%clk 0:00:06.6]} 45. Nf6+ {[%clk 0:00:19.2]} 45... Kxh4 {[%clk 0:00:06.6]}
46. e7 {[%clk 0:00:19.9]} 46... a1=Q {[%clk 0:00:06.9]} 47. e8=Q {[%clk
0:00:20.8]} 47... Qa7+ {[%clk 0:00:06.4]} 48. Kg8 {[%clk 0:00:19.9]} 48... Kxg5
{[%clk 0:00:05.7]} 49. Qe5+ {[%clk 0:00:20.4]} 49... Kh4 {[%clk 0:00:04.9]} 50.
Qh5+ {[%clk 0:00:21]} 50... Kg3 {[%clk 0:00:04.9]} 51. Qg4+ {[%clk 0:00:21.5]}
51... Kf2 {[%clk 0:00:05.3]} 52. Ne4+ {[%clk 0:00:22]} 52... Ke3 {[%clk
0:00:05.4]} 53. Nf6 {[%clk 0:00:17.7]} 53... Qb8+ {[%clk 0:00:05.5]} 54. Kf7
{[%clk 0:00:17.3]} 54... Qc7+ {[%clk 0:00:05.6]} 55. Kg8 {[%clk 0:00:14.5]}
55... Qd8+ {[%clk 0:00:05.9]} 56. Kg7 {[%clk 0:00:13.7]} 56... Qe7+ {[%clk
0:00:06.1]} 57. Kh8 {[%clk 0:00:13.5]} 57... Qxf6+ {[%clk 0:00:06.5]} 58. Kxh7
{[%clk 0:00:13.3]} 58... Qe7+ {[%clk 0:00:06.8]} 59. Kg6 {[%clk 0:00:12.9]}
59... Qe4+ {[%clk 0:00:06.5]} 60. Kh6 {[%clk 0:00:13.6]} 60... Qxg4 {[%clk
0:00:06.1]} 61. Kh7 {[%clk 0:00:14.5]} 61... Kf4 {[%clk 0:00:06.6]} 62. Kh8
{[%clk 0:00:15.4]} 62... Kf5 {[%clk 0:00:07.5]} 63. Kh7 {[%clk 0:00:16.3]} 63...
Kf6 {[%clk 0:00:08.2]} 64. Kh8 {[%clk 0:00:17.2]} 64... Qg7# {[%clk 0:00:08.6]}
0-1